bitfinex/quotes_SOLUSD_20241226
["timestamp","ask_amount","ask_price","bid_price","bid_amount"]
[1735242608512,12.21941448,189.26,189.19,12.21941448]
[1735242608913,12.21941448,189.24,189.17,12.21941448]
[1735242609317,12.21941448,189.22,189.15,12.21941448]
[1735242610525,12.21941448,189.22,189.16,12.21941448]
[1735242611842,12.21941448,189.21,189.14,12.21941448]
[1735242612019,12.21941448,189.22,189.16,12.21941448]
[1735242612741,7.764,189.23,189.13,23.776884]
[1735242612916,7.764,189.23,189.18,12.21941448]
[1735242613114,12.21941448,189.22,189.15,12.21941448]
[1735242614635,12.21941448,189.22,189.11,0.79280057]
[1735242614636,7.764,189.23,189.17,12.21941448]
[1735242614839,12.21941448,189.26,189.19,12.21941448]
[1735242615140,12.21941448,189.27,189.2,12.21941448]
[1735242615336,12.21941448,189.27,189.21,12.21941448]
[1735242615637,7.9611,189.28,189.22,12.21941448]
[1735242615829,7.9611,189.28,189.23,12.21941448]
[1735242616919,12.21941448,189.26,189.19,12.21941448]
[1735242617113,12.21941448,189.27,189.2,12.21941448]
[1735242617337,20.18051448,189.28,189.21,12.21941448]
[1735242618037,7.9611,189.28,189.23,12.21941448]
[1735242619241,12.21941448,189.27,189.2,12.21941448]
[1735242619546,12.21941448,189.25,189.18,12.21941448]
[1735242619731,12.21941448,189.24,189.17,12.21941448]
[1735242620716,12.21941448,189.25,189.18,12.21941448]
[1735242620920,12.21941448,189.27,189.2,12.21941448]
[1735242621743,12.21941448,189.27,189.21,12.21941448]
[1735242623546,20.18051448,189.28,189.21,12.21941448]
[1735242623744,12.21941448,189.27,189.21,12.21941448]
[1735242623945,12.21941448,189.27,189.2,12.21941448]
[1735242627140,12.21941448,189.27,189.13,0.79264733]
[1735242627141,20.18051448,189.28,189.21,12.21941448]
[1735242627357,7.9611,189.28,189.23,12.21941448]
[1735242627853,12.21941448,189.32,189.25,12.21941448]
[1735242628161,12.21941448,189.31,189.23,12.21941448]
[1735242628465,12.21941448,189.3,189.23,12.21941448]
[1735242630664,32.21941448,189.3,189.18,0.79247787]
[1735242630845,12.21941448,189.24,189.17,12.21941448]
[1735242631245,12.21941448,189.25,189.18,12.21941448]
[1735242631545,12.21941448,189.24,189.17,12.21941448]
[1735242631729,12.21941448,189.23,189.16,12.21941448]
[1735242634548,12.21941448,189.24,189.16,12.21941448]
[1735242634855,12.21941448,189.24,189.17,12.21941448]
[1735242635738,7.9142,189.26,189.16,12.21941448]
[1735242635739,12.21941448,189.23,189.16,12.21941448]
[1735242636645,12.21941448,189.22,189.15,12.21941448]
[1735242637343,12.21941448,189.21,189.14,12.21941448]
[1735242637748,12.21941448,189.2,189.13,12.21941448]
[1735242637951,12.21941448,189.21,189.14,12.21941448]
[1735242639958,7.9142,189.26,189.12,12.21941448]
[1735242639959,12.21941448,189.19,189.12,12.21941448]
[1735242640251,7.82200776,189.17,189.11,7.82200776]
[1735242640456,20.0,189.23,189.13,7.82200776]
[1735242640759,7.82200776,189.2,189.14,7.82200776]
[1735242640955,7.82200776,189.21,189.14,7.82200776]
[1735242641253,7.82200776,189.2,189.14,7.82200776]
[1735242641946,7.82200776,189.2,189.13,7.82200776]
[1735242645159,7.9142,189.26,189.14,7.82200776]
[1735242645462,7.82200776,189.21,189.17,20.0]
[1735242645844,7.82200776,189.21,189.14,7.82200776]
[1735242646863,7.82200776,189.2,189.13,7.82200776]
[1735242647577,7.82200776,189.2,189.12,7.82200776]
[1735242647873,7.82200776,189.19,189.12,7.82200776]
[1735242648342,7.82200776,189.2,189.12,7.82200776]
[1735242648548,7.82200776,189.2,189.13,7.82200776]
[1735242648959,7.82200776,189.19,189.12,7.82200776]
[1735242652782,7.82200776,189.19,189.13,7.82200776]
[1735242653967,7.82200776,189.2,189.13,7.82200776]
[1735242654283,7.9142,189.26,189.15,7.82200776]
[1735242654462,7.82200776,189.22,189.15,7.82200776]
[1735242654973,7.82200776,189.2,189.13,7.82200776]
[1735242655271,7.82200776,189.18,189.11,9.36260776]
[1735242655474,7.82200776,189.2,189.13,7.82200776]
[1735242657043,7.82200776,189.18,189.11,10.15547536]
[1735242657248,7.82200776,189.17,189.11,7.82200776]
[1735242658696,7.82200776,189.17,189.08,23.902374]
[1735242658968,7.82200776,189.17,189.1,7.82200776]
[1735242659870,7.82200776,189.17,189.11,7.82200776]
[1735242660885,7.82200776,189.16,189.07,1.5406]
[1735242661169,7.82200776,189.16,189.09,7.82200776]
[1735242662878,7.82200776,189.16,189.1,7.82200776]
[1735242664861,7.82200776,189.16,189.09,7.82200776]
[1735242665065,7.82200776,189.15,189.08,7.82200776]
[1735242666254,7.82200776,189.12,189.05,7.82200776]
[1735242666456,7.82200776,189.11,189.04,7.82200776]
[1735242666669,7.82200776,189.09,188.99,15.6402317]
[1735242666875,7.82200776,189.08,189.02,7.82200776]
[1735242667053,7.82200776,189.07,189.0,7.82200776]
[1735242667371,27.82200776,189.08,189.01,7.82200776]
[1735242667570,7.9366,189.11,189.05,7.82200776]
[1735242667776,7.9366,189.11,189.01,0.79340114]
[1735242667777,7.9366,189.11,189.07,7.82200776]
[1735242667961,7.9366,189.11,189.06,7.82200776]
[1735242668476,7.9366,189.11,189.05,7.82200776]
[1735242669678,15.75860776,189.11,189.04,7.82200776]
[1735242670186,7.82200776,189.09,189.03,7.82200776]
[1735242671366,7.82200776,189.1,189.03,7.82200776]
[1735242672668,7.82200776,189.1,189.0,23.902374]
[1735242672858,7.82200776,189.1,189.03,7.82200776]
[1735242673364,7.9366,189.11,189.05,7.82200776]
[1735242673569,7.9366,189.11,189.06,7.82200776]
[1735242674159,7.82200776,189.13,189.06,7.82200776]
[1735242674363,7.82200776,189.11,189.02,23.902374]
[1735242674562,7.82200776,189.11,189.05,7.82200776]
[1735242675480,7.82200776,189.12,189.05,7.82200776]
[1735242675786,7.82200776,189.13,189.06,7.82200776]
[1735242676860,20.0,189.12,189.07,7.82200776]
[1735242677788,20.0,189.12,189.08,7.82200776]
[1735242677976,20.0,189.12,189.07,7.82200776]
[1735242678172,20.0,189.12,189.08,7.82200776]
[1735242678378,20.0,189.12,189.06,7.82200776]
[1735242678571,7.82200776,189.11,189.03,0.12549]
[1735242678771,7.82200776,189.11,189.04,7.82200776]
[1735242678967,7.82200776,189.1,189.03,7.82200776]
[1735242679292,7.82200776,189.11,189.04,7.82200776]
[1735242681290,7.82200776,189.11,189.01,0.79327549]
[1735242681587,7.82200776,189.11,189.04,7.82200776]
[1735242681794,7.82200776,189.1,189.03,7.82200776]
[1735242682088,7.82200776,189.09,189.03,7.82200776]
[1735242682388,7.82200776,189.06,188.99,7.82200776]
[1735242682582,7.82200776,189.05,188.99,7.82200776]
[1735242682890,7.82200776,189.05,188.98,7.82200776]
[1735242683091,7.82200776,189.04,188.97,31.72438176]
[1735242683791,7.82200776,189.05,188.98,7.82200776]
[1735242683987,1.5629,189.07,189.02,7.82200776]
[1735242685698,1.5629,189.07,189.03,7.82200776]
[1735242686000,1.5629,189.07,189.04,7.82200776]
[1735242686392,1.5629,189.07,189.03,7.82200776]
[1735242686985,1.5629,189.07,189.02,7.82200776]
[1735242691202,7.82200776,189.06,188.99,7.82200776]
[1735242691781,7.82200776,189.06,189.0,7.82200776]
[1735242692398,7.82200776,189.06,188.99,7.82200776]
[1735242694403,9.38490776,189.07,189.0,7.82200776]
[1735242696102,8.38180276,189.07,189.0,7.82200776]
[1735242697410,8.38180276,189.07,189.01,7.82200776]
[1735242697913,8.38180276,189.07,189.0,7.82200776]
[1735242698213,8.38180276,189.07,188.99,7.82200776]
[1735242698411,7.82200776,189.06,188.99,7.82200776]
[1735242700709,7.82200776,189.06,188.97,0.91891912]
[1735242701004,0.559795,189.07,188.94,23.776884]
[1735242701005,7.82200776,189.03,188.94,0.79348266]
[1735242701207,7.82200776,189.03,188.96,7.82200776]
[1735242702022,7.82200776,189.02,188.96,7.82200776]
[1735242702309,6.1244,189.01,188.96,7.82200776]
[1735242708295,6.3585,189.06,189.0,7.82200776]
[1735242708810,14.18050776,189.06,188.99,7.82200776]
[1735242709611,6.3585,189.06,189.01,7.82200776]
[1735242709914,6.3585,189.06,189.03,7.82200776]
[1735242710118,6.3585,189.11,189.05,7.82200776]
[1735242710327,6.3585,189.11,189.08,7.82200776]
[1735242710616,6.3585,189.11,189.05,7.82200776]
[1735242711615,14.18050776,189.11,189.04,7.82200776]
[1735242713722,7.82200776,189.1,189.03,7.82200776]
[1735242714012,7.82200776,189.1,189.04,23.776884]
[1735242714319,14.18050776,189.11,189.04,7.82200776]
[1735242715135,7.82200776,189.1,189.04,23.776884]
[1735242716212,7.82200776,189.1,189.04,7.82200776]
[1735242716394,7.82200776,189.1,188.99,23.776884]
[1735242716395,6.3585,189.11,189.07,23.776884]
[1735242716596,6.3585,189.11,189.07,7.82200776]
[1735242717516,6.3585,189.11,189.07,23.776884]
[1735242718597,6.3585,189.11,189.07,7.82200776]
[1735242718808,6.1285,189.16,189.07,7.82200776]
[1735242718995,20.0,189.12,189.09,23.776884]
[1735242719998,7.82200776,189.12,189.06,7.82200776]
[1735242720205,27.82200776,189.13,189.06,7.82200776]
[1735242720406,27.82200776,189.13,189.07,23.776884]
[1735242720919,7.82200776,189.12,189.07,23.776884]
[1735242721295,27.82200776,189.13,189.07,23.776884]
[1735242722513,7.82200776,189.12,189.06,23.776884]
[1735242722699,7.82200776,189.11,189.06,23.776884]
[1735242722900,7.82200776,189.12,189.05,7.82200776]
[1735242723099,7.82200776,189.12,189.06,23.776884]
[1735242723317,27.82200776,189.13,189.06,31.59889176]
[1735242723627,27.82200776,189.13,189.02,0.91869383]
[1735242723628,20.0,189.13,189.08,7.82200776]
[1735242724003,20.0,189.13,189.09,23.776884]
[1735242724202,27.82200776,189.13,189.07,7.82200776]
[1735242724410,27.82200776,189.13,189.08,23.776884]
[1735242724800,27.82200776,189.13,189.07,23.902374]
[1735242725617,7.82200776,189.12,189.05,7.82200776]
[1735242725801,7.82200776,189.1,189.03,7.82200776]
[1735242726002,7.82200776,189.1,189.04,7.82200776]
[1735242728120,7.82200776,189.08,188.97,0.79327758]
[1735242728318,7.82200776,189.06,189.0,7.82200776]
[1735242728836,7.6522,189.09,189.04,7.82200776]
[1735242730164,7.6522,189.09,188.96,0.79324618]
[1735242730165,7.6522,189.09,189.05,31.59889176]
[1735242730325,7.6522,189.09,189.0,31.28803104]
[1735242730326,9.34570776,189.13,189.07,31.59889176]
[1735242730636,9.34570776,189.13,189.06,7.82200776]
[1735242731131,7.82200776,189.12,189.05,7.82200776]
[1735242731439,1.5237,189.13,189.05,7.82200776]
[1735242731440,7.82200776,189.11,189.05,7.82200776]
[1735242731925,7.82200776,189.1,189.03,7.82200776]
[1735242732126,7.82200776,189.1,189.04,23.776884]
[1735242732422,7.82200776,189.09,189.04,23.776884]
[1735242732633,7.82200776,189.11,189.04,7.82200776]
[1735242732844,1.5237,189.13,189.06,31.59889176]
[1735242733028,9.34570776,189.13,189.07,23.776884]
[1735242733533,9.34570776,189.13,189.06,7.82200776]
[1735242733704,9.34570776,189.13,189.07,23.776884]
[1735242734226,7.82200776,189.12,189.07,23.776884]
[1735242734602,9.34570776,189.13,189.07,23.776884]
[1735242736019,7.82200776,189.12,189.07,23.776884]
[1735242737925,7.82200776,189.12,189.06,0.12549]
[1735242738109,7.82200776,189.12,189.06,23.902374]
[1735242741230,7.82200776,189.12,189.01,0.79316302]
[1735242741405,7.82200776,189.09,189.02,7.82200776]
[1735242741609,7.82200776,189.08,189.01,7.82200776]
[1735242742227,13.90440776,189.07,189.0,7.82200776]
[1735242742430,7.82200776,189.06,188.99,7.82200776]
[1735242743009,7.82200776,189.06,189.0,23.776884]
[1735242743633,13.90440776,189.07,189.0,7.82200776]
[1735242745523,7.82200776,189.06,189.0,7.82200776]
[1735242745834,9.44850776,189.05,188.98,7.82200776]
[1735242746735,1.6265,189.05,188.99,7.82200776]
[1735242749638,9.44850776,189.05,188.99,7.82200776]
[1735242750434,7.82200776,189.02,188.93,0.793507]
[1735242750614,6.0955,189.0,188.94,7.82200776]
[1735242750816,13.91750776,189.0,188.94,7.82200776]
[1735242751014,13.91750776,189.0,188.95,23.776884]
[1735242751309,20.0,188.97,188.86,8.32124878]
[1735242751532,7.82200776,188.93,188.86,16.14325654]
[1735242751721,6.0955,188.92,188.86,8.32124878]
[1735242751920,7.82200776,188.91,188.85,7.82200776]
[1735242752309,7.82200776,188.91,188.84,7.82200776]
[1735242752515,7.82200776,188.89,188.83,7.82200776]
[1735242752714,7.82200776,188.88,188.82,7.82200776]
[1735242753130,7.82200776,188.89,188.84,23.776884]
[1735242753337,9.47170776,188.9,188.84,23.776884]
[1735242755616,9.47170776,188.9,188.84,7.82200776]
[1735242757640,9.47170776,188.9,188.83,7.82200776]
[1735242757841,20.0,188.89,188.84,7.82200776]
[1735242758144,6.0955,188.92,188.88,7.82200776]
[1735242759827,6.0955,188.92,188.87,7.82200776]
[1735242760046,13.91750776,188.92,188.86,7.82200776]
[1735242760236,7.82200776,188.91,188.84,7.82200776]
[1735242761951,7.76463676,188.91,188.84,7.82200776]
[1735242762131,13.91750776,188.92,188.85,7.82200776]
[1735242763248,20.0,188.89,188.85,7.82200776]
[1735242763651,20.0,188.89,188.88,7.82200776]
[1735242763840,6.0955,188.92,188.88,7.82200776]
[1735242764042,20.0,188.9,188.89,7.82200776]
[1735242764829,6.0955,188.92,188.89,7.82200776]
[1735242768253,6.0955,188.92,188.88,7.82200776]
[1735242769158,6.0955,188.92,188.83,0.12549]
[1735242769453,6.0955,188.92,188.88,7.82200776]
[1735242772157,20.0,188.93,188.9,7.82200776]
[1735242773156,20.0,188.93,188.89,7.82200776]
[1735242773338,20.0,188.92,188.88,7.82200776]
[1735242774045,7.82200776,188.91,188.78,1.6265]
[1735242774249,7.82200776,188.91,188.84,7.82200776]
[1735242775529,14.27880776,188.89,188.82,7.82200776]
[1735242775848,14.27880776,188.89,188.81,7.82200776]
[1735242775849,7.82200776,188.88,188.81,7.82200776]
[1735242776046,7.82200776,188.86,188.8,7.82200776]
[1735242776447,7.82200776,188.87,188.8,7.82200776]
[1735242778133,9.48680776,188.86,188.8,7.82200776]
[1735242779363,21.6648,188.86,188.82,7.82200776]
[1735242779568,1.6648,188.86,188.8,7.82200776]
[1735242780566,7.82200776,188.84,188.78,7.82200776]
[1735242780746,1.6648,188.86,188.78,7.82200776]
[1735242780747,20.0,188.82,188.78,7.82200776]
[1735242781861,20.0,188.82,188.79,7.82200776]
[1735242782059,20.0,188.83,188.81,7.82200776]
[1735242782251,5.08380124,188.86,188.82,7.82200776]
[1735242782868,5.08380124,188.86,188.8,7.82200776]
[1735242783168,12.905809,188.86,188.8,7.82200776]
[1735242783362,7.82200776,188.84,188.78,7.82200776]
[1735242783761,20.0,188.81,188.71,0.79443037]
[1735242783949,27.82200776,188.81,188.74,7.82200776]
[1735242784470,20.0,188.79,188.74,7.82200776]
[1735242784687,7.82200776,188.8,188.74,7.82200776]
[1735242785046,20.0,188.79,188.74,7.82200776]
[1735242785245,20.0,188.79,188.76,7.82200776]
[1735242785670,6.6481,188.82,188.77,7.82200776]
[1735242785966,14.47010776,188.82,188.75,7.82200776]
[1735242786164,18.91774875,188.82,188.75,12.26964875]
[1735242787056,18.91774875,188.82,188.76,12.26964875]
[1735242787257,6.6481,188.82,188.77,12.26964875]
[1735242788459,6.6481,188.82,188.76,12.26964875]
[1735242790374,6.6481,188.82,188.77,12.26964875]
[1735242793753,6.6481,188.82,188.71,0.92012194]
[1735242793754,6.6481,188.82,188.78,12.26964875]
[1735242793974,14.57365476,188.84,188.79,12.26964875]
[1735242794277,14.57365476,188.84,188.78,12.26964875]
[1735242795978,14.57365476,188.84,188.79,12.26964875]
[1735242797276,14.57365476,188.84,188.78,12.26964875]
[1735242798081,14.57365476,188.84,188.79,12.26964875]
[1735242802510,14.57365476,188.84,188.8,12.26964875]
[1735242808299,14.57365476,188.84,188.8,7.84856829]
[1735242808602,14.57365476,188.84,188.74,24.69675018]
[1735242808766,14.57365476,188.84,188.8,7.84856829]
[1735242809096,7.8351,188.86,188.82,7.84856829]
[1735242810388,7.8351,188.86,188.81,7.84856829]
[1735242812366,29.79510083,188.86,188.8,7.84856829]
[1735242812566,21.94653254,188.86,188.81,7.84856829]
[1735242812767,14.11143254,188.86,188.81,7.84856829]
[1735242813068,14.11143254,188.86,188.78,0.12549]
[1735242813069,7.96553955,188.86,188.84,7.84856829]
[1735242813282,7.96553955,188.86,188.83,7.84856829]
[1735242814991,20.0,188.87,188.83,7.84856829]
[1735242815566,20.0,188.86,188.82,7.84856829]
[1735242817989,7.84856829,188.86,188.76,2.3540924]
[1735242818165,7.84856829,188.85,188.76,0.7941924]
[1735242818370,7.84856829,188.83,188.76,7.84856829]
[1735242819680,7.84856829,188.83,188.72,0.79435187]
[1735242819681,7.84856829,188.82,188.75,7.84856829]
[1735242819892,7.84856829,188.83,188.76,7.84856829]
[1735242821596,7.70569262,188.85,188.79,7.84856829]
[1735242821800,7.70569262,188.85,188.8,7.84856829]
[1735242822474,7.70569262,188.85,188.79,7.84856829]
[1735242823603,7.70569262,188.85,188.8,7.84856829]
[1735242824095,1.5175,188.86,188.82,7.84856829]
[1735242824898,1.5175,188.86,188.81,7.84856829]
[1735242827178,1.5175,188.86,188.8,7.84856829]
[1735242830305,1.5175,188.86,188.81,7.84856829]
[1735242832805,7.96572553,188.87,188.84,7.84856829]
[1735242832988,7.70569262,188.89,188.84,7.84856829]
[1735242833390,7.70569262,188.89,188.83,7.84856829]
[1735242835413,7.70569262,188.89,188.84,7.84856829]
[1735242837111,7.9383,188.9,188.85,7.84856829]
[1735242839194,7.9383,188.9,188.86,7.84856829]
[1735242839398,7.9383,188.9,188.85,7.84856829]
[1735242840391,7.9383,188.9,188.81,0.79409039]
[1735242840721,7.9383,188.9,188.84,7.84856829]
[1735242843812,7.9383,188.9,188.81,0.79409039]
[1735242843813,7.9383,188.9,188.86,7.84856829]
[1735242846219,7.9383,188.9,188.85,7.84856829]
[1735242850424,7.9383,188.9,188.86,7.84856829]
[1735242852001,7.9383,188.9,188.85,7.84856829]
[1735242854325,7.9383,188.9,188.82,0.12549]
[1735242854504,15.78686829,188.9,188.78,2.39954082]
[1735242854704,15.78686829,188.9,188.84,7.84856829]
[1735242855223,7.9383,188.9,188.85,7.84856829]
[1735242856231,7.9383,188.9,188.86,7.84856829]
[1735242856933,20.0,188.87,188.86,7.84856829]
[1735242857224,20.0,188.87,188.8,0.79415307]
[1735242857531,20.0,188.87,188.85,7.84856829]
[1735242857778,20.0,188.87,188.84,7.84856829]
[1735242857929,20.0,188.87,188.83,7.84856829]
[1735242858530,20.0,188.87,188.82,7.84856829]
[1735242859031,20.0,188.87,188.83,7.84856829]
[1735242860034,7.9383,188.9,188.85,7.84856829]
[1735242860219,7.9383,188.9,188.86,7.84856829]
[1735242860732,7.9383,188.9,188.87,7.84856829]
[1735242861327,7.9383,188.9,188.86,7.84856829]
[1735242869135,5.73015546,188.92,188.89,7.84856829]
[1735242869325,20.0,188.92,188.89,7.84856829]
[1735242869636,20.0,188.92,188.88,7.84856829]
[1735242870336,20.0,188.92,188.87,7.84856829]
[1735242870837,20.0,188.91,188.87,7.84856829]
[1735242875219,20.0,188.92,188.87,7.84856829]
[1735242875419,8.0121,188.95,188.9,7.84856829]
[1735242875619,8.0121,188.95,188.91,7.84856829]
[1735242879746,8.0121,188.95,188.9,7.84856829]
[1735242881133,4.85894571,188.97,188.94,7.84856829]
[1735242881339,8.0965,189.0,188.96,7.84856829]
[1735242881533,8.0965,189.0,188.98,7.84856829]
[1735242881747,32.42733267,189.05,188.99,7.84856829]
[1735242881933,24.57876438,189.05,188.94,23.902374]
[1735242882139,8.0965,189.05,189.03,7.84856829]
[1735242882341,15.76630216,189.08,189.03,7.84856829]
[1735242882727,15.76630216,189.08,189.04,7.84856829]
[1735242882931,8.24113219,189.08,189.05,7.84856829]
[1735242883138,8.24113219,189.08,189.06,7.84856829]
[1735242883652,8.0965,189.1,189.05,7.84856829]
[1735242885649,8.0965,189.1,189.01,24.69568182]
[1735242885650,8.0965,189.1,189.06,7.84856829]
[1735242886531,6.5423,189.1,189.07,7.84856829]
[1735242888654,6.5423,189.1,189.06,7.84856829]
[1735242889031,6.5423,189.1,189.01,23.902374]
[1735242889234,14.39086829,189.1,189.04,7.84856829]
[1735242890359,6.5423,189.1,189.04,7.84856829]
[1735242890558,6.5423,189.1,189.05,7.84856829]
[1735242891655,6.5423,189.1,189.01,24.69567488]
[1735242891656,6.5423,189.1,189.06,7.84856829]
[1735242892734,15.37373826,189.13,189.06,7.84856829]
[1735242893235,7.52516997,189.13,189.07,7.84856829]
[1735242893635,7.52516997,189.13,189.08,7.84856829]
[1735242894761,15.37373826,189.13,189.06,7.84856829]
[1735242896960,20.0,189.1,189.07,7.84856829]
[1735242897255,15.37373826,189.13,189.07,7.84856829]
[1735242900771,7.52516997,189.13,189.07,7.84856829]
[1735242901475,20.0,189.11,189.07,7.84856829]
[1735242901651,8.1582,189.15,189.09,7.84856829]
[1735242902790,8.1582,189.15,189.1,7.84856829]
[1735242903644,20.0,189.13,189.12,7.84856829]
[1735242905167,20.0,189.13,189.12,7.97405829]
[1735242905463,6.2756,189.19,189.13,0.12549]
[1735242905671,6.2756,189.19,189.15,7.84856829]
[1735242905868,6.2756,189.19,189.14,7.84856829]
[1735242906553,6.2756,189.19,189.15,7.84856829]
[1735242907074,20.0,189.19,189.15,7.84856829]
[1735242907461,20.0,189.2,189.17,7.84856829]
[1735242907664,6.2756,189.23,189.17,7.84856829]
[1735242907869,6.2756,189.23,189.18,7.84856829]
[1735242908074,1.6094,189.25,189.2,7.84856829]
[1735242909282,20.0,189.24,189.2,7.84856829]
[1735242911880,6.2756,189.27,189.21,0.12549]
[1735242912081,6.2756,189.32,189.25,7.84856829]
[1735242912378,6.2756,189.32,189.26,7.84856829]
[1735242912564,6.2756,189.32,189.27,7.84856829]
[1735242912759,6.6384,189.37,189.29,7.84856829]
[1735242912959,7.84856829,189.36,189.21,153.17886857]
[1735242913179,7.84856829,189.36,189.29,7.84856829]
[1735242916880,6.6384,189.37,189.21,2.46587396]
[1735242916881,7.84856829,189.33,189.21,2.46587396]
[1735242917065,7.84856829,189.3,189.21,1.5481]
[1735242917271,7.84856829,189.29,189.23,7.84856829]
[1735242917577,7.84856829,189.3,189.24,7.84856829]
[1735242919188,20.0,189.28,189.24,7.84856829]
[1735242919589,20.0,189.28,189.25,7.84856829]
[1735242920187,20.0,189.3,189.27,7.84856829]
[1735242920366,27.84856829,189.34,189.28,7.84856829]
[1735242920974,7.84856829,189.33,189.27,7.84856829]
[1735242922494,7.84856829,189.33,189.26,7.84856829]
[1735242923087,20.0,189.29,189.21,1.5481]
[1735242923290,7.84856829,189.3,189.24,7.84856829]
[1735242924088,7.84856829,189.28,189.22,7.84856829]
[1735242924291,7.84856829,189.26,189.2,7.84856829]
[1735242924470,7.84856829,189.26,189.19,7.84856829]
[1735242924991,7.84856829,189.25,189.19,7.84856829]
[1735242925195,7.84856829,189.25,189.18,7.84856829]
[1735242927495,20.0,189.22,189.11,8.90012035]
[1735242927677,20.0,189.21,189.16,7.84856829]
[1735242928378,20.0,189.21,189.18,7.84856829]
[1735242928794,20.0,189.22,189.18,7.84856829]
[1735242930892,20.0,189.22,189.17,7.84856829]
[1735242931095,20.0,189.22,189.11,1.5214]
[1735242931096,20.0,189.18,189.11,1.5214]
[1735242931408,7.84856829,189.16,189.07,1.5214]
[1735242931604,7.84856829,189.16,189.09,7.84856829]
[1735242931812,7.84856829,189.15,189.08,7.84856829]
[1735242931983,7.84856829,189.16,189.09,7.84856829]
[1735242932299,7.84856829,189.16,189.1,7.84856829]
[1735242932514,7.84856829,189.15,189.08,7.84856829]
[1735242933002,7.84856829,189.16,189.09,7.84856829]
[1735242933375,20.0,189.16,189.13,7.84856829]
[1735242933575,20.0,189.18,189.15,7.84856829]
[1735242933882,7.84856829,189.25,189.17,7.84856829]
[1735242934082,7.84856829,189.25,189.1,38.23696012]
[1735242934083,7.84856829,189.25,189.19,7.84856829]
[1735242934399,12.21138245,189.25,189.18,12.21138245]
[1735242934597,12.21138245,189.24,189.17,12.21138245]
[1735242935516,12.21138245,189.25,189.18,12.21138245]
[1735242935703,20.0,189.22,189.18,12.21138245]
[1735242937301,20.0,189.22,189.17,12.21138245]
[1735242939506,20.0,189.22,189.16,12.21138245]
[1735242940118,20.0,189.2,189.16,12.21138245]
[1735242940608,20.0,189.2,189.15,12.21138245]
[1735242940794,20.0,189.19,189.15,12.21138245]
[1735242940999,20.0,189.19,189.16,12.21138245]
[1735242941810,20.0,189.21,189.17,12.21138245]
[1735242942014,8.2054,189.26,189.2,12.21138245]
[1735242942189,6.6217,189.26,189.22,12.21138245]
[1735242942384,6.6217,189.26,189.2,12.21138245]
[1735242943203,20.0,189.23,189.2,12.21138245]
[1735242943590,6.6217,189.26,189.2,12.21138245]
[1735242946202,12.21138245,189.25,189.18,12.21138245]
[1735242946527,12.21138245,189.22,189.16,12.21138245]
[1735242946826,20.0,189.19,189.13,12.21138245]
[1735242946988,20.0,189.19,189.1,12.21138245]
[1735242946989,12.21138245,189.17,189.1,12.21138245]
[1735242947410,20.0,189.14,189.1,12.21138245]
[1735242948114,20.0,189.14,189.09,12.21138245]
[1735242950630,20.0,189.14,189.1,12.21138245]
[1735242950798,20.0,189.15,189.12,12.21138245]
[1735242951200,18.23608245,189.18,189.11,12.21138245]
[1735242951496,6.0247,189.18,189.12,12.21138245]
[1735242951797,6.0247,189.18,189.06,24.69548546]
[1735242951798,18.23608245,189.18,189.11,12.21138245]
[1735242955111,6.0247,189.18,189.11,12.21138245]
[1735242956818,6.0247,189.18,189.12,12.21138245]
[1735242961714,6.0247,189.18,189.13,12.21138245]
[1735242962220,20.0,189.15,189.11,12.21138245]
[1735242964520,20.0,189.15,189.12,12.21138245]
[1735242964720,6.0247,189.18,189.14,12.21138245]
[1735242966335,6.0247,189.18,189.13,12.21138245]
[1735242967316,6.0247,189.18,189.12,12.21138245]
[1735242968307,6.0247,189.18,189.13,12.21138245]
[1735242970234,6.0247,189.18,189.13,7.82002121]
[1735242977232,6.0247,189.18,189.12,7.82002121]
[1735242977427,13.84472121,189.18,189.11,7.82002121]
[1735242977729,13.84472121,189.18,189.07,0.12549]
[1735242977730,6.0247,189.18,189.12,7.82002121]
[1735242977938,6.0247,189.18,189.14,7.82002121]
[1735242981428,6.0247,189.18,189.12,7.82002121]
[1735242983843,6.0247,189.18,189.13,7.82002121]
[1735242991649,1.5193,189.22,189.16,7.82002121]
[1735242991951,1.5193,189.22,189.17,7.82002121]
[1735242993321,20.0,189.2,189.17,7.82002121]
[1735242994236,20.0,189.2,189.11,0.12549]
[1735242994441,20.0,189.2,189.15,7.82002121]
[1735242999548,20.0,189.2,189.16,7.82002121]
[1735243000369,20.0,189.2,189.17,7.82002121]
[1735243001043,20.0,189.2,189.11,0.9184064]
[1735243001044,1.5193,189.22,189.18,7.82002121]
[1735243001250,4.23079474,189.27,189.21,7.82002121]
[1735243001465,7.9657,189.27,189.25,7.82002121]